bitfinex/quotes_SOLUSD_20250307
["timestamp","ask_amount","ask_price","bid_price","bid_amount"]
[1741382794997,47.79320398,144.55,144.5,2.0]
[1741382795197,47.79320398,144.54,144.53,2.0]
[1741382795395,47.79320398,144.54,144.5,2.0]
[1741382795632,47.79320398,144.54,144.53,2.0]
[1741382795930,47.79320398,144.55,144.53,2.0]
[1741382796091,49.17690398,144.54,144.5,2.0]
[1741382796295,47.79320398,144.53,144.52,2.0]
[1741382796696,47.79320398,144.55,144.52,2.0]
[1741382797515,47.79320398,144.54,144.52,2.0]
[1741382797717,1.3836,144.56,144.5,2.0]
[1741382797718,47.79320398,144.53,144.5,2.0]
[1741382798021,47.79320398,144.51,144.46,2.0]
[1741382798237,47.79320398,144.49,144.48,2.0]
[1741382798520,47.79320398,144.53,144.5,0.033]
[1741382798903,4.8729,144.54,144.5,0.033]
[1741382799105,0.03,144.54,144.53,2.0]
[1741382799542,0.03,144.54,144.51,2.0]
[1741382799709,47.79320398,144.53,144.52,2.0]
[1741382800216,1.4137,144.54,144.5,2.033]
[1741382800406,47.79320398,144.52,144.5,2.033]
[1741382800609,47.79320398,144.53,144.51,2.0]
[1741382801124,47.79320398,144.52,144.5,0.033]
[1741382801318,4.8729,144.54,144.5,0.033]
[1741382801507,0.03,144.54,144.53,2.0]
[1741382801701,0.03,144.54,144.51,2.0]
[1741382801907,1.4137,144.54,144.53,2.0]
[1741382802123,0.03,144.54,144.53,2.0]
[1741382802323,0.03,144.54,144.53,49.79320398]
[1741382802717,0.03,144.54,144.53,2.0]
[1741382805312,0.03,144.54,144.53,56.71210398]
[1741382805520,0.03,144.59,144.58,2.0]
[1741382806512,0.03,144.59,144.58,12.0659]
[1741382806722,0.03,144.6,144.59,20.64964886]
[1741382807033,47.82320398,144.6,144.56,2.0]
[1741382807214,47.79320398,144.57,144.52,11.7832]
[1741382808032,47.79320398,144.56,144.54,2.0]
[1741382808241,47.79320398,144.55,144.52,2.0]
[1741382808427,1.3837,144.54,144.53,2.0]
[1741382808629,1.3832,144.59,144.56,2.0]
[1741382809027,0.03,144.6,144.52,6.9194]
[1741382809028,1.4131,144.6,144.58,2.0]
[1741382809538,4.8709,144.6,144.57,2.0]
[1741382809911,1.4131,144.6,144.57,2.0]
[1741382810536,0.03,144.6,144.59,2.0]
[1741382810844,47.82320398,144.6,144.56,2.0]
[1741382811025,47.79320398,144.59,144.54,2.0]
[1741382811228,47.79320398,144.57,144.53,2.0]
[1741382812038,47.79320398,144.54,144.5,0.033]
[1741382812240,47.79320398,144.53,144.5,0.033]
[1741382812540,10.94,144.59,144.5,0.033]
[1741382812541,47.79320398,144.54,144.52,2.0]
[1741382812744,1.3837,144.53,144.52,2.0]
[1741382813141,47.79320398,144.56,144.52,2.0]
[1741382813330,47.79320398,144.56,144.5,0.033]
[1741382813331,47.79320398,144.57,144.54,2.0]
[1741382813530,0.03,144.6,144.57,2.0]
[1741382813734,0.03,144.6,144.58,2.0]
[1741382814043,0.03,144.6,144.59,2.0]
[1741382814454,0.03,144.6,144.59,49.79320398]
[1741382814618,0.03,144.6,144.59,56.70930398]
[1741382814940,47.79320398,144.73,144.68,2.0]
[1741382815148,49.17480398,144.75,144.7,2.0]
[1741382815364,1.3816,144.75,144.71,2.0]
[1741382815523,47.79320398,144.76,144.72,2.0]
[1741382815524,1.3816,144.76,144.72,2.0]
[1741382815726,47.79320398,144.74,144.71,2.0]
[1741382816240,47.79320398,144.73,144.7,2.0]
[1741382816435,1.3816,144.76,144.72,2.0]
[1741382816436,47.79320398,144.74,144.72,2.0]
[1741382816642,1.4117,144.75,144.72,2.0]
[1741382817041,49.20490398,144.75,144.72,2.0]
[1741382817242,47.79320398,144.74,144.69,2.0]
[1741382817442,47.79320398,144.74,144.72,2.0]
[1741382817692,49.20490398,144.75,144.69,2.0]
[1741382817820,49.20490398,144.75,144.65,6.9131]
[1741382817821,47.79320398,144.71,144.7,2.0]
[1741382818131,47.79320398,144.73,144.7,2.0]
[1741382818330,47.79320398,144.71,144.66,2.0]
[1741382818536,4.8659,144.75,144.69,2.0]
[1741382818844,4.8659,144.75,144.62,2.0]
[1741382818845,47.79320398,144.7,144.62,2.0]
[1741382819048,47.79320398,144.67,144.65,2.0]
[1741382819355,47.79320398,144.67,144.63,2.0]
[1741382819562,47.79320398,144.66,144.63,2.0]
[1741382819932,47.79320398,144.66,144.65,2.0]
[1741382820134,47.79320398,144.67,144.65,2.0]
[1741382820331,161.4659,144.73,144.62,2.0]
[1741382820641,1.3829,144.62,144.6,2.0]
[1741382820822,47.79320398,144.61,144.59,1.26465967]
[1741382821026,47.79320398,144.6,144.59,1.26465967]
[1741382821251,47.79320398,144.6,144.52,11.7212]
[1741382821468,52.63340398,144.62,144.56,2.0]
[1741382821633,4.8402,144.62,144.56,2.0]
[1741382822135,11.7548,144.62,144.5,0.033]
[1741382822336,18.64964886,144.61,144.5,0.033]
[1741382822675,18.64964886,144.61,144.5,2.033]
[1741382822971,18.64964886,144.59,144.5,0.033]
[1741382823137,10.92,144.58,144.5,0.033]
[1741382823841,18.64964886,144.57,144.5,0.033]
[1741382824158,18.64964886,144.57,144.44,2.033]
[1741382824767,22.18383401,144.57,144.45,2.0]
[1741382825065,18.64964886,144.55,144.45,2.0]
[1741382825243,18.64964886,144.55,144.44,2.033]
[1741382825645,18.64964886,144.55,144.44,0.033]
[1741382826863,18.64964886,144.53,144.44,0.033]
[1741382827847,24.30620233,144.53,144.44,0.033]
[1741382828455,74.30620233,144.53,144.44,0.033]
[1741382828846,18.64964886,144.51,144.44,0.033]
[1741382829053,160.76,144.5,144.44,0.033]
[1741382829360,18.64964886,144.49,144.44,0.033]
[1741382829541,10.92,144.48,144.44,0.033]
[1741382830352,18.64964886,144.47,144.44,0.0001]
[1741382831157,1.3844,144.46,144.44,0.0001]
[1741382831660,1.3844,144.46,144.44,2.0001]
[1741382831962,1.3844,144.46,144.44,0.0001]
[1741382833175,4.8452,144.47,144.44,0.0001]
[1741382833373,18.64964886,144.46,144.43,0.0001]
[1741382834060,18.64964886,144.46,144.35,9.5218]
[1741382834853,18.64964886,144.46,144.35,0.033]
[1741382835067,18.64964886,144.47,144.35,0.033]
[1741382835364,18.64964886,144.44,144.35,0.033]
[1741382836075,18.64964886,144.44,144.36,2.0]
[1741382837271,3.4618,144.43,144.4,2.0]
[1741382837456,3.4618,144.43,144.35,2.033]
[1741382837655,3.4618,144.43,144.36,2.0]
[1741382837970,3.4618,144.43,144.35,0.033]
[1741382838473,3.4618,144.43,144.36,2.0]
[1741382838671,3.4618,144.43,144.37,2.0]
[1741382839174,11.7702,144.43,144.35,0.033]
[1741382839348,11.7702,144.43,144.36,2.0]
[1741382840194,11.7702,144.43,144.37,2.0]
[1741382840692,4.8465,144.43,144.37,2.0]
[1741382841055,4.8465,144.43,144.38,2.0]
[1741382841550,4.8465,144.43,144.4,2.0]
[1741382842863,1.3847,144.43,144.41,2.0]
[1741382843075,1.3847,144.43,144.42,2.0]
[1741382843261,4.80223697,144.49,144.42,2.0]
[1741382843464,4.80223697,144.49,144.46,2.0]
[1741382843675,1.3841,144.49,144.46,2.0]
[1741382843979,1.3841,144.49,144.44,47.17780602]
[1741382843980,1.3841,144.49,144.48,2.0]
[1741382844283,1.3841,144.49,144.45,2.0]
[1741382844498,4.8445,144.49,144.43,2.0]
[1741382844804,4.8445,144.49,144.42,4.8124]
[1741382845094,18.64964886,144.48,144.39,2.0]
[1741382845253,10.9,144.47,144.39,2.0]
[1741382845454,4.8455,144.46,144.39,2.0]
[1741382846072,18.64964886,144.45,144.36,15.6147]
[1741382846255,18.64964886,144.45,144.35,0.033]
[1741382846256,18.64964886,144.45,144.35,2.033]
[1741382846580,18.64964886,144.45,144.35,0.033]
[1741382847470,18.64964886,144.43,144.33,2.0]
[1741382847895,18.64964886,144.43,144.34,2.0]
[1741382848193,10.88,144.42,144.36,2.033]
[1741382848756,10.88,144.42,144.36,0.033]
[1741382849195,10.88,144.42,144.37,2.0]
[1741382849379,1.3849,144.41,144.37,2.0]
[1741382850292,4.8472,144.41,144.36,2.033]
[1741382850485,4.8472,144.41,144.37,2.0]
[1741382850665,4.8472,144.41,144.36,0.033]
[1741382850864,11.7719,144.41,144.36,0.033]
[1741382851069,18.64964886,144.4,144.36,0.0001]
[1741382851302,4.8479,144.39,144.36,0.0001]
[1741382851967,18.64964886,144.38,144.36,0.0001]
[1741382852174,18.64964886,144.38,144.29,0.033]
[1741382853287,4.8486,144.37,144.29,0.033]
[1741382853989,18.64964886,144.36,144.29,0.033]
[1741382854191,18.64964886,144.34,144.29,0.033]
[1741382855230,18.64964886,144.34,144.27,0.033]
[1741382855231,10.88,144.34,144.27,0.033]
[1741382855585,18.64964886,144.32,144.27,0.033]
[1741382856502,18.64964886,144.32,144.21,0.033]
[1741382856503,24.10052613,144.32,144.21,0.033]
[1741382856805,18.64964886,144.32,144.26,2.0]
[1741382857221,18.64964886,144.32,144.22,0.033]
[1741382857369,4.8506,144.31,144.22,0.033]
[1741382857570,4.8506,144.31,144.24,2.0]
[1741382857809,18.64964886,144.3,144.24,2.0]
[1741382857992,4.8506,144.31,144.24,2.0]
[1741382858197,1.3859,144.31,144.26,2.0]
[1741382858787,11.7801,144.31,144.23,2.0]
[1741382858992,18.64964886,144.3,144.22,2.033]
[1741382859198,4.8506,144.31,144.26,2.0]
[1741382859511,1.3857,144.33,144.28,2.0]
[1741382860183,4.8499,144.33,144.28,2.0]
[1741382860410,18.64964886,144.32,144.23,2.0]
[1741382860802,18.64964886,144.32,144.22,0.033]
[1741382860992,68.64964886,144.32,144.21,0.033]
[1741382861205,18.64964886,144.28,144.17,4.3674]
[1741382861388,18.64964886,144.28,144.22,0.033]
[1741382861389,18.64964886,144.26,144.22,0.033]
[1741382861600,30.43374886,144.26,144.22,0.033]
[1741382862217,30.43374886,144.26,144.2,2.0]
[1741382863394,33.92419307,144.26,144.2,2.0]
[1741382863590,33.92419307,144.26,144.15,2.033]
[1741382863803,33.92419307,144.26,144.15,0.033]
[1741382864007,33.92419307,144.26,144.16,2.0]
[1741382864288,33.92419307,144.26,144.18,2.0]
[1741382864682,33.92419307,144.26,144.19,2.0]
[1741382865602,33.92419307,144.26,144.2,2.0]
[1741382865603,8.34264421,144.26,144.2,2.0]
[1741382865811,1.3863,144.26,144.22,2.0]
[1741382866485,151.4463,144.27,144.24,2.0]
[1741382866684,151.4463,144.27,144.25,2.0]
[1741382867190,150.06,144.27,144.25,2.0]
[1741382867400,1.3861,144.29,144.26,2.0]
[1741382867625,1.386,144.3,144.26,2.0]
[1741382867925,1.386,144.3,144.28,2.0]
[1741382868235,150.12,144.35,144.29,2.0]
[1741382868524,151.5055,144.35,144.33,2.0]
[1741382868699,151.5055,144.35,144.32,2.0]
[1741382868905,151.5055,144.35,144.29,47.17780602]
[1741382868906,151.5055,144.35,144.29,2.0]
[1741382869220,151.5055,144.35,144.31,2.0]
[1741382869422,151.5055,144.35,144.3,2.0]
[1741382869713,154.9693,144.35,144.3,2.0]
[1741382869922,154.9693,144.35,144.29,2.0]
[1741382870091,154.9693,144.35,144.31,2.0]
[1741382870486,18.64964886,144.34,144.27,2.0]
[1741382870824,18.64964886,144.34,144.25,11.0389]
[1741382871187,18.64964886,144.34,144.28,2.0]
[1741382871388,18.64964886,144.34,144.26,2.0]
[1741382871593,4.8499,144.33,144.26,2.0]
[1741382872024,4.8499,144.33,144.28,2.0]
[1741382872519,1.3857,144.33,144.3,2.0]
[1741382873507,4.8499,144.33,144.25,11.0389]
[1741382873713,1.3859,144.31,144.27,2.0]
[1741382874443,4.8506,144.31,144.27,2.0]
[1741382874741,4.8506,144.31,144.25,9.0389]
[1741382874742,18.64964886,144.3,144.22,6.7868]
[1741382874945,10.84,144.29,144.24,2.0]
[1741382875315,10.84,144.29,144.23,2.0]
[1741382875716,4.8515,144.28,144.23,2.0]
[1741382876117,4.8515,144.28,144.22,4.7868]
[1741382876335,4.8515,144.28,144.22,0.033]
[1741382876549,4.8515,144.28,144.22,2.033]
[1741382876851,11.7824,144.28,144.22,2.033]
[1741382879653,4.8515,144.28,144.24,2.0]
[1741382880354,1.3861,144.28,144.26,2.0]
[1741382880522,10.46345769,144.34,144.28,2.0]
[1741382880714,11.84905769,144.34,144.32,2.0]
[1741382881048,10.46345769,144.34,144.33,2.0]
[1741382881918,11.84905769,144.34,144.33,2.0]
[1741382882327,11.84905769,144.34,144.31,9.1051]
[1741382882548,11.84905769,144.34,144.33,2.0]
[1741382882549,15.31305769,144.34,144.33,2.0]
[1741382882726,11.84905769,144.34,144.33,2.0]
[1741382883253,15.31305769,144.34,144.31,9.1051]
[1741382883458,15.31305769,144.34,144.31,2.0]
[1741382883762,10.84,144.33,144.27,6.4793]
[1741382883922,10.84,144.33,144.26,9.4667]
[1741382883923,168.74964886,144.32,144.26,2.0]
[1741382884127,4.8506,144.31,144.23,2.0]
[1741382884421,4.8506,144.31,144.26,2.0]
[1741382887146,4.8506,144.31,144.27,2.0]
[1741382887519,4.8506,144.31,144.28,2.0]
[1741382888252,1.3859,144.31,144.3,2.0]
[1741382888434,151.4858,144.32,144.31,2.0]
[1741382888754,1.3856,144.34,144.33,2.0]
[1741382889322,0.03,144.35,144.31,2.0]
[1741382889751,0.03,144.35,144.32,2.0]
[1741382890133,0.03,144.35,144.34,2.0]
[1741382890858,0.03,144.35,144.32,2.0]
[1741382891347,0.03,144.35,144.22,47.21080602]
[1741382891560,15.6993,144.35,144.28,47.17780602]
[1741382891722,12.2355,144.35,144.3,47.17780602]
[1741382891919,12.2355,144.35,144.29,47.17780602]
[1741382892120,18.64964886,144.34,144.22,0.033]
[1741382892565,18.64964886,144.34,144.23,47.17780602]
[1741382893029,22.6269,144.35,144.27,47.17780602]
[1741382893030,15.6993,144.35,144.27,47.17780602]
[1741382893440,19.16024625,144.35,144.26,47.17780602]
[1741382893644,19.16024625,144.35,144.25,47.17780602]
[1741382893964,19.16024625,144.35,144.22,0.033]
[1741382893965,18.64964886,144.34,144.23,47.17780602]
[1741382894464,26.08784625,144.35,144.22,0.033]
[1741382894465,19.16024625,144.35,144.22,6.9667]
[1741382894632,19.16024625,144.35,144.27,47.17780602]
[1741382894830,12.2355,144.35,144.29,47.17780602]
[1741382895047,1.4155,144.35,144.27,47.17780602]
[1741382895273,4.8793,144.35,144.25,47.17780602]
[1741382895473,4.8793,144.35,144.24,47.17780602]
[1741382895763,18.64964886,144.34,144.24,47.17780602]
[1741382897074,18.67964886,144.34,144.24,47.17780602]
[1741382897255,18.67964886,144.34,144.22,6.9666]
[1741382897256,0.03,144.34,144.26,47.17780602]
[1741382897449,0.03,144.34,144.22,0.033]
[1741382897660,18.67964886,144.34,144.23,47.17780602]
[1741382898065,0.03,144.34,144.25,47.17780602]
[1741382898273,0.03,144.34,144.26,47.17780602]
[1741382898454,0.03,144.34,144.27,47.17780602]
[1741382899080,0.03,144.34,144.27,54.10900602]
[1741382899576,0.03,144.34,144.27,54.10920602]
[1741382899880,0.03,144.34,144.31,47.17780602]
[1741382900378,0.03,144.34,144.29,47.17780602]
[1741382900559,0.03,144.34,144.28,47.17780602]
[1741382900960,0.03,144.34,144.27,6.9314]
[1741382900961,0.03,144.34,144.27,47.17780602]
[1741382901255,0.03,144.34,144.26,47.17780602]
[1741382901448,0.03,144.34,144.24,6.9325]
[1741382901653,0.03,144.34,144.25,47.17780602]
[1741382901854,0.03,144.34,144.26,47.17780602]
[1741382902155,0.03,144.34,144.22,0.033]
[1741382902352,0.03,144.34,144.22,47.21080602]
[1741382902776,0.03,144.34,144.23,47.17780602]
[1741382903071,0.03,144.34,144.24,47.17780602]
[1741382903261,18.64964886,144.33,144.23,47.17780602]
[1741382903469,10.8,144.32,144.23,47.17780602]
[1741382904354,10.8,144.32,144.22,0.033]
[1741382904564,10.8,144.32,144.22,47.21080602]
[1741382904762,10.8,144.32,144.22,0.033]
[1741382905566,4.851,144.3,144.22,0.033]
[1741382906152,4.851,144.3,144.24,47.17780602]
[1741382906465,1.386,144.3,144.26,47.17780602]
[1741382906659,1.386,144.3,144.22,0.033]
[1741382906660,1.386,144.3,144.27,47.17780602]
[1741382906860,1.386,144.3,144.22,18.68264886]
[1741382907060,1.386,144.3,144.26,47.17780602]
[1741382907275,1.386,144.3,144.27,47.17780602]
[1741382907475,10.46345769,144.33,144.26,47.17780602]
[1741382907667,4.8503,144.32,144.26,47.17780602]
[1741382908357,1.3858,144.32,144.25,47.17780602]
[1741382908559,1.3857,144.33,144.29,47.17780602]
[1741382908761,0.03,144.34,144.3,47.17780602]
[1741382908963,0.03,144.34,144.31,47.17780602]
[1741382909164,1.4156,144.34,144.3,47.17780602]
[1741382909571,0.03,144.34,144.24,25.61534886]
[1741382909771,0.03,144.34,144.29,47.17780602]
[1741382909972,0.03,144.34,144.3,47.17780602]
[1741382910160,0.03,144.34,144.28,47.17780602]
[1741382910476,0.03,144.34,144.24,6.9657]
[1741382910679,0.03,144.34,144.28,47.17780602]
[1741382911060,0.03,144.34,144.27,47.17780602]
[1741382911269,0.03,144.34,144.28,47.17780602]
[1741382911976,0.03,144.34,144.26,47.17780602]
[1741382912173,0.03,144.34,144.25,47.17780602]
[1741382912354,0.03,144.34,144.27,47.17780602]
[1741382913167,0.03,144.34,144.28,47.17780602]
[1741382913364,0.03,144.34,144.29,47.17780602]
[1741382913860,0.03,144.34,144.26,47.17780602]
[1741382914472,0.03,144.34,144.27,47.17780602]
[1741382914680,0.03,144.34,144.29,47.17780602]
[1741382914993,0.03,144.34,144.28,47.17780602]
[1741382915293,0.03,144.34,144.26,31.55147107]
[1741382915965,0.03,144.34,144.28,31.55147107]
[1741382916173,0.03,144.34,144.32,31.55147107]
[1741382916472,0.03,144.34,144.27,50.20111993]
[1741382916473,0.03,144.34,144.33,31.55147107]
[1741382917069,0.03,144.34,144.3,9.0665]
[1741382917266,0.03,144.34,144.25,6.9322]
[1741382917465,0.03,144.34,144.29,47.31067946]
[1741382917672,0.03,144.34,144.31,47.31067946]
[1741382918267,0.03,144.34,144.3,47.31067946]
[1741382918876,0.03,144.34,144.32,47.31067946]
[1741382919188,0.03,144.34,144.33,47.31067946]
[1741382920059,0.03,144.34,144.33,54.23917946]
[1741382921365,0.03,144.34,144.33,120.19950778]
[1741382923574,0.03,144.34,144.33,72.88882832]
[1741382923890,0.03,144.34,144.33,47.31067946]
[1741382924771,0.03,144.34,144.31,4.698]
[1741382924966,0.03,144.34,144.33,47.31067946]
[1741382925890,0.03,144.34,144.31,4.698]
[1741382926196,0.03,144.34,144.31,47.31067946]
[1741382926491,0.03,144.34,144.3,47.31067946]
[1741382926893,0.03,144.34,144.29,6.9304]
[1741382927102,0.03,144.39,144.32,47.31067946]
[1741382927289,4.8779,144.39,144.29,6.9304]
[1741382927471,4.8779,144.39,144.3,47.31067946]
[1741382927795,4.8779,144.39,144.28,47.31067946]
[1741382928091,4.8779,144.39,144.29,47.31067946]
[1741382928496,4.8779,144.39,144.3,47.31067946]
[1741382928703,4.8779,144.39,144.27,65.96032832]
[1741382928877,1.4151,144.39,144.28,7.97003994]
[1741382929077,1.4151,144.39,144.33,47.31067946]
[1741382929277,1.4151,144.39,144.31,47.31067946]
[1741382929700,4.8779,144.39,144.31,47.31067946]
[1741382929868,4.8779,144.39,144.32,47.31067946]
[1741382930075,1.4151,144.39,144.32,47.31067946]
[1741382930275,1.4151,144.39,144.35,47.31067946]
[1741382930881,0.03,144.39,144.35,47.31067946]
[1741382931077,0.03,144.39,144.33,47.31067946]
[1741382931283,0.03,144.39,144.34,47.31067946]
[1741382931495,0.03,144.39,144.33,47.31067946]
[1741382931996,0.03,144.39,144.34,47.31067946]
[1741382932300,0.03,144.39,144.32,47.31067946]
[1741382933578,0.03,144.39,144.35,47.31067946]
[1741382933985,0.03,144.39,144.34,47.31067946]
[1741382934283,0.03,144.39,144.31,47.31067946]
[1741382934603,0.03,144.39,144.29,47.31067946]
[1741382934798,0.03,144.39,144.28,0.033]
[1741382935107,18.67964886,144.39,144.28,0.033]
[1741382935688,18.64964886,144.37,144.28,0.033]
[1741382935893,10.72,144.36,144.28,0.033]
[1741382936097,18.64964886,144.35,144.28,0.033]
[1741382936805,10.72,144.36,144.28,0.033]
[1741382937003,4.8493,144.35,144.28,47.34367946]
[1741382937196,4.8493,144.35,144.28,0.033]
[1741382937503,11.7769,144.35,144.28,0.033]
[1741382938083,4.8493,144.35,144.28,0.033]
[1741382938397,1.3855,144.35,144.28,47.34367946]
[1741382938614,1.3855,144.35,144.28,0.033]
[1741382938777,3.4638,144.35,144.28,0.033]
[1741382938982,22.11344886,144.35,144.28,0.033]
[1741382939212,18.64964886,144.34,144.28,0.033]
[1741382940719,17.74303896,144.35,144.28,0.033]
[1741382940926,12.1053,144.37,144.29,31.56727773]
[1741382941208,18.64964886,144.36,144.28,0.033]
[1741382941415,10.46345769,144.35,144.28,0.033]
[1741382941621,10.46345769,144.35,144.28,31.60027773]
[1741382941903,10.46345769,144.35,144.31,31.56727773]
[1741382942879,12.1053,144.37,144.31,31.56727773]
[1741382943307,12.1053,144.37,144.32,31.56727773]
[1741382943510,0.03,144.35,144.31,31.56727773]
[1741382944602,0.03,144.35,144.34,31.56727773]
[1741382945115,0.03,144.35,144.34,63.13455546]
[1741382945334,0.03,144.39,144.34,81.78420432]
[1741382945484,0.03,144.39,144.38,31.56727773]
[1741382946081,0.03,144.39,144.38,50.21692659]
[1741382946661,0.03,144.39,144.38,57.14302659]
[1741382946812,10.46345769,144.43,144.39,27.75544886]
[1741382946999,10.46345769,144.43,144.4,31.56727773]
[1741382947630,3.4607,144.48,144.4,31.56727773]
[1741382947858,1.4145,144.46,144.41,31.56727773]
[1741382948629,0.03,144.46,144.41,31.56727773]
[1741382948840,0.03,144.46,144.42,31.56727773]
[1741382950733,0.03,144.46,144.4,31.56727773]
[1741382951033,0.03,144.46,144.41,31.56727773]
[1741382951218,0.03,144.46,144.42,31.56727773]
[1741382951414,0.03,144.46,144.43,31.56727773]
[1741382951827,0.03,144.46,144.45,31.56727773]
[1741382952130,0.03,144.46,144.42,4.5432]
[1741382952131,0.03,144.46,144.41,31.56727773]
[1741382952324,0.03,144.46,144.4,31.56727773]
[1741382952523,0.03,144.46,144.39,31.56727773]
[1741382953046,0.03,144.46,144.36,31.56727773]
[1741382953212,10.71,144.46,144.37,31.56727773]
[1741382953405,10.71,144.46,144.36,31.56727773]
[1741382954011,29.35964886,144.46,144.36,31.56727773]
[1741382954332,18.64964886,144.45,144.35,31.56727773]
[1741382954717,4.8462,144.44,144.35,31.56727773]
[1741382955421,1.3846,144.44,144.36,31.56727773]
[1741382955622,1.3846,144.44,144.38,31.56727773]
[1741382955925,1.3846,144.44,144.34,31.56727773]
[1741382955926,1.3845,144.45,144.39,31.56727773]
[1741382956142,1.3845,144.45,144.38,31.56727773]
[1741382956459,4.8459,144.45,144.35,31.56727773]
[1741382956757,4.8459,144.45,144.36,31.56727773]
[1741382956941,4.8459,144.45,144.37,31.56727773]
[1741382957144,4.8459,144.45,144.35,31.56727773]
[1741382958033,4.8459,144.45,144.36,31.56727773]
[1741382958561,4.8459,144.45,144.33,16.0542]
[1741382958743,1.3845,144.45,144.38,31.56727773]
[1741382959156,1.3845,144.45,144.37,31.56727773]
[1741382959351,4.8459,144.45,144.38,31.56727773]
[1741382959563,1.3845,144.45,144.38,31.56727773]
[1741382959858,151.3744,144.46,144.41,31.56727773]
[1741382960169,151.3744,144.46,144.43,31.56727773]
[1741382960170,0.03,144.46,144.43,31.56727773]
[1741382960495,0.03,144.46,144.45,31.56727773]
[1741382963075,0.03,144.46,144.45,38.49007773]
[1741382963471,20.92691539,144.52,144.45,38.49007773]
[1741382963472,15.73315769,144.6,144.46,18.64964886]
[1741382963639,12.0434,144.57,144.51,31.56727773]
[1741382963846,12.0434,144.57,144.5,31.56727773]
[1741382964142,1.3834,144.57,144.5,31.56727773]
[1741382964344,4.8419,144.57,144.47,31.56727773]
[1741382964551,4.8419,144.57,144.48,31.56727773]
[1741382965574,4.8419,144.57,144.46,31.56727773]
[1741382966140,4.8419,144.57,144.43,9.0059]
[1741382966141,4.8419,144.57,144.48,31.56727773]
[1741382966342,18.64964886,144.56,144.46,31.56727773]
[1741382966573,18.64964886,144.56,144.44,31.56727773]
[1741382966776,18.64964886,144.56,144.41,6.9243]
[1741382966950,18.64964886,144.56,144.43,31.56727773]
[1741382967287,18.64964886,144.54,144.39,31.56727773]
[1741382967579,18.64964886,144.52,144.38,31.56727773]
[1741382967780,18.64964886,144.5,144.38,31.56727773]
[1741382967950,5.2692,144.53,144.39,31.56727773]
[1741382968151,20.92691539,144.6,144.52,31.56727773]
[1741382968456,20.92691539,144.6,144.51,31.56727773]
[1741382968457,0.03,144.57,144.51,31.56727773]
[1741382968643,0.03,144.57,144.5,31.56727773]
[1741382969459,0.03,144.57,144.49,31.56727773]
[1741382969640,0.03,144.57,144.5,31.56727773]
[1741382970029,0.03,144.57,144.48,4.8235]
[1741382970030,0.03,144.57,144.51,31.56727773]
[1741382970548,0.03,144.57,144.5,31.56727773]
[1741382972066,0.03,144.57,144.51,31.56727773]
[1741382972943,0.03,144.57,144.52,31.56727773]
[1741382973456,0.03,144.57,144.51,31.56727773]
[1741382973666,0.03,144.57,144.5,31.56727773]
[1741382974029,0.03,144.57,144.51,31.56727773]
[1741382974333,0.03,144.57,144.52,31.56727773]
[1741382974640,0.03,144.57,144.54,31.56727773]
[1741382974855,0.03,144.57,144.48,31.56727773]
[1741382975036,0.03,144.57,144.54,31.56727773]
[1741382975231,0.03,144.57,144.48,31.56727773]
[1741382975539,0.03,144.57,144.53,31.56727773]
[1741382975741,0.03,144.57,144.56,31.56727773]
[1741382977341,0.03,144.61,144.56,31.56727773]